bitfinex/quotes_SOLUSD_20250413
["timestamp","ask_amount","ask_price","bid_price","bid_amount"]
[1744519962824,22.01119319,130.73,130.67,22.01119319]
[1744519963125,22.01119319,130.7,130.65,22.01119319]
[1744519963332,22.01119319,130.69,130.65,7.6537]
[1744519963726,22.01119319,130.7,130.65,29.66489319]
[1744519964137,22.01119319,130.68,130.65,7.6537]
[1744519964311,22.01119319,130.68,130.63,6.627]
[1744519964511,22.01119319,130.68,130.63,28.63819319]
[1744519964711,22.01119319,130.68,130.63,36.29319319]
[1744519964907,22.01119319,130.69,130.63,36.29319319]
[1744519965118,22.01119319,130.69,130.64,22.01119319]
[1744519965430,22.01119319,130.68,130.63,36.29319319]
[1744519965611,22.01119319,130.68,130.63,14.282]
[1744519965811,22.01119319,130.68,130.63,36.29319319]
[1744519966232,22.01119319,130.69,130.64,22.01119319]
[1744519966713,22.01119319,130.7,130.64,29.66559319]
[1744519967731,22.01119319,130.7,130.65,22.01119319]
[1744519967931,7.79146157,130.73,130.65,29.66489319]
[1744519968133,22.01119319,130.7,130.65,29.66489319]
[1744519968628,88.6489,130.74,130.66,22.01119319]
[1744519968807,22.01119319,130.72,130.67,22.01119319]
[1744519969013,22.01119319,130.71,130.66,22.01119319]
[1744519969724,88.6489,130.74,130.66,29.66459319]
[1744519969923,22.01119319,130.72,130.67,22.01119319]
[1744519970434,22.01119319,130.73,130.68,22.01119319]
[1744519971435,22.01119319,130.73,130.67,22.01119319]
[1744519971747,22.01119319,130.73,130.67,29.66349319]
[1744519972120,22.01119319,130.72,130.67,29.66349319]
[1744519974729,22.01119319,130.69,130.64,7.02]
[1744519975237,22.01119319,130.69,130.63,28.63819319]
[1744519975558,22.01119319,130.66,130.62,1.5675]
[1744519975721,22.01119319,130.65,130.6,6.392]
[1744519976055,22.01119319,130.64,130.6,6.392]
[1744519976842,22.01119319,130.65,130.6,6.392]
[1744519977320,22.01119319,130.64,130.6,6.392]
[1744519978523,22.01119319,130.65,130.6,28.40319319]
[1744519980231,22.01119319,130.65,130.6,36.06009319]
[1744519980444,23.05216157,130.69,130.61,22.01119319]
[1744519980745,22.01119319,130.68,130.63,22.01119319]
[1744519981326,7.02,130.7,130.65,22.01119319]
[1744519981548,81.0,130.71,130.66,22.01119319]
[1744519981549,22.01119319,130.71,130.66,22.01119319]
[1744519982930,22.01119319,130.71,130.66,29.66439319]
[1744519983535,22.01119319,130.72,130.67,22.01119319]
[1744519983938,22.01119319,130.71,130.66,7.6532]
[1744519984145,22.01119319,130.7,130.65,31.27869319]
[1744519984338,22.01119319,130.71,130.65,9.2675]
[1744519984731,7.6497,130.73,130.66,22.01119319]
[1744519984930,22.01119319,130.72,130.67,22.01119319]
[1744519985134,81.0,130.75,130.69,22.01119319]
[1744519985337,88.02,130.75,130.69,22.01119319]
[1744519985638,110.03119319,130.75,130.69,22.01119319]
[1744519985838,22.01119319,130.72,130.67,6.0291]
[1744519986053,22.01119319,130.72,130.67,28.04029319]
[1744519986953,22.01119319,130.68,130.61,1.6629]
[1744519987153,26.0,130.65,130.59,11.84649007]
[1744519987354,22.01119319,130.63,130.59,11.84649007]
[1744519987536,6.3232,130.68,130.6,22.01119319]
[1744519988048,6.3232,130.68,130.62,22.01119319]
[1744519988253,1.5108,130.69,130.62,22.01119319]
[1744519988436,88.02,130.7,130.63,22.01119319]
[1744519988632,88.02,130.7,130.61,22.01119319]
[1744519988633,22.01119319,130.67,130.61,22.01119319]
[1744519988834,22.01119319,130.66,130.6,22.01119319]
[1744519989039,22.01119319,130.66,130.61,22.01119319]
[1744519989236,22.01119319,130.65,130.6,22.01119319]
[1744519989934,22.01119319,130.66,130.6,22.01119319]
[1744519990154,22.01119319,130.63,130.57,18.64964886]
[1744519990353,22.01119319,130.63,130.46,38.93912261]
[1744519990354,1.0,130.36,130.27,29.53472779]
[1744519990556,1.0,130.3,130.27,7.51446112]
[1744519990852,1.0,130.33,130.29,14.89119319]
[1744519991050,1.0,130.4,130.31,22.01119319]
[1744519991254,1.0,130.39,130.3,262.56]
[1744519991458,1.0,130.39,130.31,10.4]
[1744519991756,1.0,130.34,130.32,272.96]
[1744519991951,1.0,130.33,130.32,272.96]
[1744519992157,1.0,130.33,130.27,7.01446112]
[1744519992158,1.0,130.31,130.27,7.01446112]
[1744519992334,23.01119319,130.31,130.27,7.01446112]
[1744519992535,5.57960009,130.3,130.27,7.01446112]
[1744519992750,1.0,130.29,130.28,10.74]
[1744519992933,6.55441619,130.29,130.28,273.48]
[1744519993138,8.34421421,130.29,130.28,273.48]
[1744519993542,13.9238143,130.29,130.28,273.48]
[1744519993764,11.13401628,130.29,130.28,273.48]
[1744519993932,11.13401628,130.29,130.28,306.13237244]
[1744519994134,5.57960009,130.29,130.28,313.80807244]
[1744519994546,3.91300009,130.29,130.28,313.80807244]
[1744519994953,1.0,130.39,130.28,313.80807244]
[1744519995261,32.65237244,130.38,130.31,32.65237244]
[1744519995456,61.27209943,130.45,130.28,270.4157]
[1744519995457,1.0,130.43,130.28,270.4157]
[1744519995647,1.0,130.42,130.38,32.65237244]
[1744519995852,1.0,130.42,130.39,273.6]
[1744519996050,1.0,130.42,130.4,10.74]
[1744519996241,1.0,130.41,130.4,10.74]
[1744519996665,108.590358,130.41,130.4,10.74]
[1744519996960,117.210358,130.41,130.4,10.74]
[1744519997134,118.210358,130.41,130.4,10.74]
[1744519997742,117.210358,130.41,130.4,10.74]
[1744519998065,118.210358,130.41,130.4,10.74]
[1744519998439,117.210358,130.41,130.4,10.74]
[1744519999047,118.210358,130.41,130.4,10.74]
[1744519999246,118.210358,130.41,130.39,177.96234691]
[1744519999852,118.210358,130.41,130.4,10.76]
[1744520000050,118.210358,130.41,130.39,177.96234691]
[1744520000258,97.52648029,130.41,130.4,10.76]
[1744520000759,97.52648029,130.41,130.26,0.063]
[1744520000760,221.73165273,130.41,130.26,0.063]
[1744520000963,1.0,130.32,130.26,0.063]
[1744520001147,1.0,130.27,130.26,0.063]
[1744520001349,1.0,130.34,130.26,0.063]
[1744520001542,33.65237244,130.36,130.27,43.87237244]
[1744520001745,32.65237244,130.34,130.27,43.87237244]
[1744520001953,32.65237244,130.34,130.27,51.54867244]
[1744520001954,1.0,130.31,130.27,51.54867244]
[1744520002145,1.0,130.31,130.27,7.6763]
[1744520002451,33.65237244,130.32,130.28,11.22]
[1744520002758,19.07613357,130.38,130.28,274.2]
[1744520002759,1.0,130.34,130.28,274.2]
[1744520002943,1.0,130.37,130.29,43.87237244]
[1744520003152,1.0,130.34,130.31,32.65237244]
[1744520003459,1.0,130.36,130.3,32.65237244]
[1744520003658,1.0,130.34,130.29,11.22]
[1744520003839,33.65237244,130.34,130.29,11.22]
[1744520004038,32.65237244,130.33,130.29,11.22]
[1744520004241,32.65237244,130.33,130.28,270.6553]
[1744520004443,33.65237244,130.34,130.29,11.22]
[1744520004672,1.0,130.36,130.3,32.65237244]
[1744520004972,1.0,130.36,130.32,32.65237244]
[1744520005460,1.0,130.36,130.3,0.14216157]
[1744520005641,1.0,130.37,130.31,51.58634444]
[1744520005843,1.0,130.36,130.31,51.58634444]
[1744520006045,1.0,130.36,130.32,7.6734]
[1744520006264,1.0,130.39,130.33,19.07613357]
[1744520006579,33.65237244,130.4,130.33,51.72850601]
[1744520006780,96.52648029,130.41,130.37,32.65237244]
[1744520006953,96.52648029,130.41,130.38,274.3]
[1744520007162,96.52648029,130.41,130.38,306.95237244]
[1744520007359,96.52648029,130.41,130.38,274.3]
[1744520007753,96.52648029,130.41,130.38,32.65237244]
[1744520007972,96.52648029,130.41,130.4,7.6687]
[1744520008280,1.0,130.39,130.33,19.07613357]
[1744520008460,32.65237244,130.37,130.31,32.65237244]
[1744520008973,33.65237244,130.37,130.31,32.65237244]
[1744520009546,1.0,130.38,130.33,32.65237244]
[1744520009775,32.65237244,130.36,130.3,40.32687244]
[1744520010273,33.65237244,130.38,130.31,51.72850601]
[1744520010478,33.65237244,130.38,130.34,0.063]
[1744520010679,1.0,130.4,130.35,274.32]
[1744520012577,32.65237244,130.39,130.35,274.32]
[1744520012783,33.65237244,130.4,130.35,274.32]
[1744520013160,32.65237244,130.4,130.35,274.32]
[1744520013373,32.65237244,130.39,130.35,274.32]
[1744520013677,33.65237244,130.4,130.35,274.32]
[1744520013873,32.65237244,130.4,130.35,274.32]
[1744520014270,93.98206673,130.41,130.35,274.32]
[1744520014787,61.32969429,130.41,130.35,274.32]
[1744520014987,93.98206673,130.41,130.35,274.32]
[1744520015483,1.0,130.4,130.35,274.32]
[1744520015686,1.0,130.39,130.35,263.1]
[1744520015855,60.32969429,130.41,130.36,11.22]
[1744520016055,61.32969429,130.41,130.36,11.22]
[1744520016789,92.98206673,130.41,130.36,11.22]
[1744520017086,93.98206673,130.41,130.36,11.22]
[1744520017287,92.98206673,130.41,130.36,11.22]
[1744520017487,93.98206673,130.41,130.36,11.22]
[1744520017663,92.98206673,130.41,130.36,11.22]
[1744520017867,93.98206673,130.41,130.36,11.22]
[1744520018362,32.65237244,130.4,130.34,32.71537244]
[1744520018560,32.65237244,130.4,130.37,11.22]
[1744520018561,1.0,130.38,130.37,11.22]
[1744520018781,41.32217244,130.38,130.37,11.22]
[1744520018967,1.0,130.35,130.34,0.063]
[1744520019183,33.65237244,130.35,130.34,0.063]
[1744520021396,1.0,130.35,130.34,0.063]
[1744520021565,33.65237244,130.35,130.34,0.063]
[1744520022288,32.65237244,130.35,130.34,0.063]
[1744520025491,33.65237244,130.35,130.34,0.063]
[1744520026769,41.32397244,130.35,130.34,0.063]
[1744520026994,1.0,130.3,130.27,10.84]
[1744520027199,32.65237244,130.28,130.27,10.84]
[1744520027369,33.65237244,130.3,130.27,10.84]
[1744520027569,32.65237244,130.3,130.27,10.84]
[1744520027764,33.65237244,130.3,130.27,10.84]
[1744520027996,32.65237244,130.3,130.27,10.84]
[1744520028295,8.674,130.31,130.27,10.84]
[1744520028485,33.65237244,130.3,130.27,10.84]
[1744520028664,33.65237244,130.29,130.27,9.84]
[1744520028864,7.674,130.31,130.27,9.84]
[1744520028865,33.65237244,130.28,130.27,9.84]
[1744520031311,41.32807244,130.28,130.27,9.84]
[1744520031510,33.65237244,130.28,130.27,9.84]
[1744520031882,41.32807244,130.28,130.27,9.84]
[1744520032894,33.65237244,130.28,130.27,9.84]
[1744520033603,1.0,130.28,130.27,9.84]
[1744520034884,33.65237244,130.28,130.27,9.84]
[1744520035311,36.44528758,130.28,130.27,9.84]
[1744520036094,3.79291514,130.28,130.27,9.84]
[1744520037214,1.0,130.28,130.27,9.84]
[1744520041226,1.0,130.28,130.27,17.5163]
[1744520042424,81.0,130.34,130.27,39.6375096]
[1744520042425,1.0,130.3,130.27,39.6375096]
[1744520042608,1.0,130.3,130.27,17.5163]
[1744520044094,23.1212096,130.31,130.27,17.5163]
[1744520044297,1.0,130.3,130.27,36.7072]
[1744520044522,1.0,130.3,130.27,17.5163]
[1744520044736,1.0,130.29,130.27,17.5163]
[1744520045038,1.0,130.29,130.23,263.28216157]
[1744520045039,18.64964886,130.11,129.98,1.6046]
[1744520045331,1.0,130.08,130.03,22.1212096]
[1744520045541,4.99090004,130.12,130.0,22.1212096]
[1744520045725,3.99090004,130.12,130.08,22.1212096]
[1744520045929,3.99090004,130.12,130.09,10.76]
[1744520046109,4.99090004,130.12,130.07,29.8092096]
[1744520046315,1.0,130.11,130.08,10.76]
[1744520046627,3.99090004,130.12,130.1,22.1212096]
[1744520046812,3.99090004,130.12,130.11,22.1212096]
[1744520047211,3.99090004,130.12,130.1,22.1212096]
[1744520047414,3.99090004,130.12,130.09,296.13935217]
[1744520047815,3.99090004,130.12,130.1,32.73935217]
[1744520049267,3.99090004,130.12,130.11,32.73935217]
[1744520049445,3.99090004,130.12,130.1,32.73935217]
[1744520050246,2.32430004,130.12,130.11,32.73935217]
[1744520050718,88.68,130.21,130.11,32.73935217]
[1744520050719,1.0,130.21,130.12,19.07613357]
[1744520050909,1.0,130.19,130.16,32.73935217]
[1744520051115,1.0,130.19,130.17,43.49935217]
[1744520051528,1.0,130.19,130.17,10.76]
[1744520051918,1.0,130.22,130.18,32.73935217]
[1744520052139,1.0,130.2,130.18,32.73935217]
[1744520052321,1.0,130.23,130.19,296.21935217]
[1744520052635,1.0,130.23,130.2,32.73935217]
[1744520052936,1.0,130.22,130.2,32.73935217]
[1744520053514,1.0,130.23,130.2,32.73935217]
[1744520053735,1.0,130.24,130.2,32.73935217]
[1744520053932,1.0,130.24,130.2,7.6804]
[1744520054138,1.0,130.23,130.2,40.41975217]
[1744520055216,1.0,130.24,130.2,40.41975217]
[1744520055417,1.0,130.23,130.2,40.41975217]
[1744520057434,1.0,130.23,130.2,7.6804]
[1744520058151,1.0,130.23,130.2,40.41975217]
[1744520058552,1.0,130.23,130.2,7.6804]
[1744520058754,1.0,130.23,130.2,40.41975217]
[1744520059852,1.0,130.23,130.2,7.6804]
[1744520060024,1.0,130.23,130.2,40.41975217]
[1744520060449,1.0,130.25,130.21,32.73935217]
[1744520060646,1.0,130.23,130.2,7.6804]
[1744520060954,1.0,130.23,130.22,7.6793]
[1744520061355,1.0,130.24,130.22,7.6793]
[1744520061655,1.0,130.24,130.23,10.76]
[1744520062257,1.0,130.25,130.23,10.76]
[1744520062460,1.0,130.24,130.23,10.76]
[1744520063354,1.0,130.25,130.23,18.4384]
[1744520063838,1.0,130.24,130.23,18.4384]
[1744520064040,1.0,130.25,130.23,18.4384]
[1744520064550,1.0,130.27,130.23,51.17775217]
[1744520064726,1.0,130.27,130.24,263.42]
[1744520065230,33.73935217,130.27,130.24,263.42]
[1744520065455,1.0,130.27,130.24,271.0977]
[1744520065842,33.73935217,130.27,130.24,271.0977]
[1744520066451,1.0,130.33,130.26,32.73935217]
[1744520066629,1.0,130.28,130.24,298.0741]
[1744520066828,33.73935217,130.29,130.24,330.81345217]
[1744520067031,1.0,130.28,130.25,32.73935217]
[1744520067335,1.0,130.3,130.27,32.73935217]
[1744520067540,1.0,130.3,130.28,7.6757]
[1744520067831,1.0,130.3,130.29,10.42]
[1744520068036,1.0,130.31,130.29,10.42]
[1744520068364,1.0,130.3,130.29,10.42]
[1744520068743,1.0,130.32,130.29,10.42]
[1744520069062,33.73935217,130.33,130.29,10.42]
[1744520069268,1.0,130.32,130.29,32.51992644]
[1744520069867,1.0,130.33,130.3,7.6745]
[1744520070039,1.0,130.33,130.3,48.96082644]
[1744520070245,1.0,130.33,130.3,26.8609]
[1744520070445,1.0,130.33,130.3,48.96082644]
[1744520070761,1.0,130.33,130.31,22.09992644]
[1744520071141,0.03,130.34,130.31,22.09992644]
[1744520071341,1.03,130.34,130.31,22.09992644]
[1744520071667,1.03,130.34,130.32,22.09992644]
[1744520071847,1.03,130.34,130.33,7.6728]
[1744520072744,0.03,130.34,130.33,7.6728]
[1744520072941,0.03,130.34,130.33,29.77272644]
[1744520074761,23.12992644,130.34,130.33,7.6728]
[1744520074965,23.12992644,130.34,130.33,18.0928]
[1744520075141,1.03,130.34,130.33,18.0928]
[1744520075346,0.03,130.34,130.33,18.0928]
[1744520076346,1.03,130.34,130.33,10.42]
[1744520076759,23.12992644,130.34,130.33,10.42]
[1744520077160,1.03,130.34,130.33,10.42]
[1744520077465,1.03,130.34,130.33,18.0928]
[1744520078064,22.12992644,130.34,130.33,10.42]
[1744520078254,23.12992644,130.34,130.33,10.42]
[1744520078461,1.03,130.34,130.33,10.42]
[1744520078777,0.03,130.34,130.33,18.0928]
[1744520079563,22.12992644,130.34,130.33,18.0928]
[1744520079765,0.03,130.34,130.33,18.0928]
[1744520083471,0.03,130.34,130.33,40.19272644]
[1744520084452,0.03,130.34,130.33,303.41272644]
[1744520086766,1.0,130.39,130.35,22.09992644]
[1744520087681,1.0,130.39,130.37,22.09992644]
[1744520088672,0.03,130.4,130.38,29.76972644]
[1744520088968,1.03,130.4,130.39,9.72]
[1744520089353,0.03,130.4,130.39,9.72]
[1744520089754,1.03,130.4,130.39,9.72]
[1744520089968,0.03,130.4,130.39,9.72]
[1744520090163,0.03,130.4,130.39,17.3892]
[1744520090373,1.03,130.4,130.39,17.3892]
[1744520090547,0.03,130.4,130.39,17.3892]
[1744520090754,1.03,130.4,130.39,17.3892]
[1744520092574,0.03,130.4,130.39,17.3892]
[1744520092772,1.03,130.4,130.39,17.3892]
[1744520093153,1.03,130.4,130.39,9.72]
[1744520093989,1.03,130.4,130.36,22.09992644]
[1744520093990,1.0,130.39,130.34,19.1792]
[1744520094157,1.0,130.37,130.35,17.3916]
[1744520095356,1.0,130.35,130.34,17.392]
[1744520096378,1.0,130.35,130.34,9.72]
[1744520096552,23.09992644,130.35,130.34,9.72]
[1744520097551,1.0,130.35,130.34,9.72]
[1744520097855,23.09992644,130.35,130.34,9.72]
[1744520099262,1.0,130.35,130.34,17.3922]
[1744520099464,0.03,130.4,130.34,17.3922]
[1744520099465,1.0,130.36,130.34,17.3922]
[1744520099781,1.0,130.35,130.34,17.3922]
[1744520100963,1.0,130.36,130.34,17.3922]
[1744520101284,1.0,130.35,130.34,17.3922]
[1744520101486,22.09992644,130.37,130.34,17.3922]
[1744520101487,1.0,130.37,130.34,17.3922]
[1744520101985,1.0,130.36,130.34,17.3922]
[1744520103563,1.0,130.37,130.34,17.3922]
[1744520103767,1.0,130.36,130.34,17.3922]
[1744520104307,1.0,130.36,130.34,9.72]
[1744520104595,23.09992644,130.35,130.34,9.72]
[1744520105898,1.0,130.35,130.34,17.3922]
[1744520106078,9.62,130.35,130.34,17.3922]
[1744520106278,8.62,130.35,130.34,17.3922]
[1744520106694,9.62,130.35,130.34,17.3922]
[1744520106908,9.62,130.35,130.34,7.6722]
[1744520107092,9.62,130.35,130.34,17.0522]
[1744520107779,8.62,130.35,130.34,39.15212644]
[1744520108901,8.62,130.35,130.34,17.0522]
[1744520110599,8.62,130.35,130.34,39.15212644]
[1744520111179,8.62,130.35,130.34,17.0522]
[1744520111485,9.62,130.35,130.34,17.0522]
[1744520111899,23.42709569,130.35,130.34,9.38]
[1744520112092,31.09869569,130.35,130.34,9.38]
[1744520112293,31.09869569,130.35,130.28,7.7385]
[1744520112488,14.80709569,130.3,130.29,9.38]
[1744520112692,1.0,130.3,130.29,9.38]
[1744520113402,23.11062552,130.3,130.29,9.38]
[1744520113791,1.0,130.3,130.29,9.38]
[1744520114206,1.0,130.3,130.29,17.0551]
[1744520114505,23.11062552,130.3,130.29,9.38]
[1744520114681,1.0,130.3,130.29,9.38]
[1744520114884,1.0,130.3,130.29,17.0551]
[1744520117311,23.11062552,130.3,130.29,9.38]
[1744520118189,1.0,130.29,130.28,0.063]
[1744520118492,23.11062552,130.29,130.28,0.063]
[1744520118696,1.0,130.29,130.28,0.063]
[1744520118899,3.80687321,130.29,130.28,0.063]
[1744520119803,1.0,130.29,130.28,0.063]
[1744520120204,23.11062552,130.29,130.28,0.063]
[1744520120408,30.78572552,130.29,130.28,0.063]
[1744520120703,23.11062552,130.29,130.28,0.063]
[1744520121308,1.0,130.29,130.28,0.063]
[1744520122080,1.0,130.29,130.28,22.17362552]
[1744520122286,1.0,130.29,130.28,0.063]
[1744520123303,1.0,130.31,130.28,22.17362552]
[1744520123489,1.0,130.31,130.29,22.11062552]
[1744520123690,1.0,130.31,130.3,9.06]
[1744520124002,1.0,130.31,130.3,16.7345]
[1744520124485,1.0,130.31,130.3,9.06]
[1744520124691,1.0,130.32,130.3,16.7345]
[1744520125310,1.0,130.31,130.3,16.7345]
[1744520125511,1.0,130.32,130.3,16.7345]
[1744520125706,1.0,130.31,130.3,16.7345]
[1744520126090,1.0,130.32,130.3,16.7345]
[1744520126491,1.0,130.31,130.3,9.06]
[1744520126697,1.0,130.31,130.3,16.7345]
[1744520127607,1.0,130.31,130.3,9.06]
[1744520130719,1.0,130.3,130.29,7.6748]
[1744520130914,1.0,130.3,130.29,16.7348]
[1744520131114,1.0,130.3,130.29,9.06]
[1744520131315,1.0,130.29,130.28,0.063]
[1744520131512,23.11062552,130.29,130.28,0.063]
[1744520131830,23.11062552,130.29,130.22,0.063]
[1744520131831,41.90243595,130.29,130.22,0.063]
[1744520132020,23.11062552,130.23,130.22,0.063]
[1744520132211,1.0,130.23,130.22,0.063]
[1744520133901,14.83533268,130.23,130.22,0.063]
[1744520134616,1.0,130.23,130.22,0.063]
[1744520134994,14.83533268,130.23,130.22,0.063]
[1744520135501,23.14264209,130.23,130.22,0.063]
[1744520136522,1.0,130.23,130.22,0.063]
[1744520137926,23.14264209,130.23,130.22,0.063]
[1744520139701,1.0,130.23,130.22,0.063]
[1744520140120,1.0,130.27,130.22,22.20564209]
[1744520140324,1.0,130.27,130.26,22.14264209]
[1744520140521,1.0,130.27,130.26,30.88264209]
[1744520140721,1.0,130.29,130.26,30.88264209]
[1744520140929,1.0,130.23,130.22,0.063]
[1744520141803,1.0,130.23,130.22,8.803]
[1744520143905,23.14264209,130.23,130.22,8.803]
[1744520144106,30.82134209,130.23,130.22,0.063]
[1744520145308,33.61438328,130.23,130.22,0.063]
[1744520145523,20.07613357,130.21,130.2,0.063]
[1744520145713,42.21877566,130.21,130.2,0.063]
[1744520146117,23.14264209,130.21,130.2,0.063]
[1744520146310,25.93568328,130.21,130.2,0.063]
[1744520147127,33.61558328,130.21,130.2,0.063]
[1744520148010,1.0,130.15,130.14,16.0499]
[1744520148816,22.14264209,130.18,130.09,306.14951766]
[1744520148817,1.0,130.12,130.11,11.89777283]
[1744520149214,1.0,130.12,130.11,19.58357283]
[1744520149411,1.0,130.12,130.11,41.72621492]
[1744520150531,1.0,130.14,130.11,41.72621492]
[1744520150736,1.0,130.14,130.13,22.14264209]
[1744520150934,1.0,130.15,130.13,22.14264209]
[1744520151240,1.0,130.15,130.14,29.82664209]
[1744520151632,1.0,130.14,130.13,7.6844]
[1744520151818,1.0,130.14,130.13,29.82704209]
[1744520152018,1.0,130.14,130.13,7.6844]
[1744520152817,1.0,130.13,130.12,38.56774209]
[1744520153019,1.0,130.13,130.12,16.4251]
[1744520153217,1.0,130.14,130.11,11.89777283]
[1744520153413,99.933972,130.15,130.11,11.89777283]
[1744520153414,1.0,130.12,130.11,11.89777283]
[1744520153612,1.0,130.12,130.11,19.58357283]
[1744520154041,1.0,130.12,130.11,11.89777283]
[1744520154244,1.0,130.12,130.11,19.58357283]
[1744520154445,1.0,130.12,130.11,11.89777283]
[1744520154617,1.0,130.15,130.11,60.94071492]
[1744520154937,1.0,130.17,130.14,22.14264209]
[1744520155139,1.0,130.18,130.16,29.82544209]
[1744520155344,1.0,130.18,130.17,22.14264209]
[1744520155517,1.0,130.21,130.17,22.14264209]
[1744520155722,1.0,130.2,130.19,22.14264209]
[1744520156031,1.0,130.21,130.19,22.14264209]
[1744520156238,1.0,130.24,130.2,30.88264209]
[1744520156546,1.0,130.21,130.2,30.88264209]
[1744520156944,1.0,130.23,130.2,30.88264209]
[1744520157120,1.0,130.21,130.2,38.56304209]
[1744520157456,1.0,130.24,130.2,38.56304209]
[1744520157626,1.0,130.23,130.21,22.14264209]
[1744520158115,1.0,130.22,130.21,22.14264209]
[1744520158315,1.0,130.23,130.21,22.14264209]
[1744520158537,1.0,130.22,130.21,22.14264209]
[1744520159135,1.0,130.24,130.21,29.82254209]
[1744520159348,1.0,130.23,130.22,22.14264209]
[1744520159645,1.0,130.23,130.21,49.02224209]
[1744520159816,1.0,130.22,130.21,49.02224209]
[1744520160432,1.0,130.24,130.21,49.02224209]
[1744520160638,1.0,130.24,130.23,22.14264209]
[1744520161346,1.0,130.24,130.23,29.82134209]
[1744520161838,1.0,130.26,130.23,49.01814209]
[1744520162038,1.0,130.26,130.24,22.14264209]
[1744520162246,1.0,130.26,130.25,8.74]
[1744520162633,23.14264209,130.26,130.25,8.74]
[1744520164136,1.0,130.26,130.25,16.4175]
[1744520167626,1.0,130.27,130.25,16.4175]
[1744520167839,1.0,130.26,130.25,16.4175]
[1744520169362,1.0,130.27,130.25,16.4175]
[1744520169546,1.0,130.27,130.25,38.56014209]
[1744520169734,1.0,130.26,130.25,38.56014209]
[1744520170031,1.0,130.27,130.25,38.56014209]
[1744520170231,1.0,130.26,130.25,38.56014209]
[1744520170844,1.0,130.27,130.25,38.56014209]
[1744520171032,1.0,130.26,130.25,38.56014209]
[1744520171352,1.0,130.26,130.25,16.4175]
[1744520171858,1.0,130.26,130.25,38.56014209]
[1744520172847,1.0,130.26,130.25,16.4175]
[1744520173951,1.0,130.26,130.25,38.56014209]
[1744520174634,1.0,130.27,130.25,38.56014209]
[1744520174954,1.0,130.26,130.25,16.4175]
[1744520176436,14.8267549,130.26,130.25,8.74]
[1744520176627,1.0,130.26,130.25,8.74]
[1744520178055,1.0,130.26,130.25,16.4175]
[1744520182138,1.0,130.29,130.25,30.2442549]
[1744520182334,1.0,130.28,130.27,13.8267549]
[1744520182552,1.0,130.28,130.25,35.6113]
[1744520182757,1.0,130.28,130.27,21.5030549]
[1744520183158,1.0,130.28,130.27,7.6763]
[1744520183962,1.0,130.29,130.27,7.6763]
[1744520184259,1.0,130.28,130.27,21.5030549]
[1744520184457,1.0,130.29,130.27,21.5030549]
[1744520184647,1.0,130.28,130.27,21.5030549]
[1744520184850,1.0,130.28,130.27,7.6763]
[1744520187065,1.0,130.27,130.25,8.74]
[1744520187367,1.0,130.26,130.25,8.74]
[1744520187541,1.0,130.26,130.25,16.4175]
[1744520188376,1.0,130.26,130.25,8.74]
[1744520188865,14.8267549,130.26,130.25,8.74]
[1744520189037,22.5036549,130.26,130.25,8.74]
[1744520189241,1.0,130.23,130.22,263.48]
[1744520189482,14.8267549,130.23,130.22,263.48]
[1744520189651,1.0,130.23,130.22,263.48]
[1744520191154,1.0,130.22,130.21,8.58]
[1744520191480,1.0,130.15,130.14,277.1867549]